fUST/lending_fUST_20240825
["ID","MTS","AMOUNT","RATE_DAILY","PERIOD"]
[335841831,1724526649411,-192.803506,0.00013699,2]
[335841832,1724526649421,-192.803506,0.00013699,2]
[335841833,1724526649430,-192.803506,0.00013699,2]
[335841834,1724526649440,-500.00000007,0.00013699,2]
[335841835,1724526649451,-500.0,0.00013699,2]
[335841836,1724526649461,-394.21883987,0.00013699,2]
[335841837,1724526649471,-194.91980144,0.00013699,2]
[335841838,1724526649481,-550.762549,0.00013699,2]
[335841839,1724526649491,-550.762549,0.00013699,2]
[335841840,1724526649500,-192.803506,0.00013699,2]
[335841841,1724526649510,-192.803506,0.00013699,2]
[335841842,1724526649520,-150.112233,0.000137,2]
[335841843,1724526649530,-150.112233,0.000137,2]
[335841844,1724526649541,-150.112233,0.000137,2]
[335841845,1724526649556,-150.112233,0.000137,2]
[335841846,1724526649566,-150.112233,0.000137,2]
[335841847,1724526649576,-151.0,0.00013703,2]
[335841849,1724526649587,-151.0,0.00013703,2]
[335841850,1724526649597,-151.0,0.00013703,2]
[335841851,1724526649607,-167.166,0.00013703,2]
[335841852,1724526649618,-150.396,0.00013703,2]
[335841853,1724526649629,-246.722,0.00013703,2]
[335841854,1724526649639,-150.173,0.00013703,2]
[335841855,1724526649649,-212.127,0.00013703,2]
[335841856,1724526649659,-150.706,0.00013703,2]
[335841857,1724526649669,-218.233,0.00013703,2]
[335841858,1724526649679,-678.23888369,0.00013714,2]
[335841859,1724526649689,-151.0,0.00013792,2]
[335841860,1724526649698,-388.366918,0.00013792,2]
[335841861,1724526649708,-388.366918,0.00013792,2]
[335841862,1724526649718,-285.01442321,0.00013792,2]
[335841863,1724526649728,-422.52524319,0.00013792,2]
[335841864,1724526649738,-181.79001175,0.00013792,2]
[335841865,1724526649748,-151.0,0.00013813,2]
[335841866,1724526649758,-151.0,0.00013813,2]
[335841867,1724526649768,-1014.298995,0.00013813,2]
[335841868,1724526649778,-676.19933,0.00013813,2]
[335841869,1724526649787,-153.0,0.00013836,2]
[335841870,1724526649797,-500.0,0.00013837,2]
[335841871,1724526649808,-500.0,0.00013837,2]
[335841872,1724526649817,-500.0,0.00013837,2]
[335841873,1724526649827,-1452.375908,0.00013845,2]
[335841874,1724526649837,-465.22408242,0.00013883,2]
[335841875,1724526649847,-150.112233,0.000139,2]
[335841876,1724526649857,-150.112235,0.000139,2]
[335841877,1724526649867,-150.0,0.00013927,2]
[335841878,1724526649877,-262.91670572,0.00013971,2]
[335841879,1724526649886,-386.02472387,0.00013971,2]
[335841880,1724526650069,-500.0,0.00013972,2]
[335841881,1724526650078,-500.0,0.00013972,2]
[335841882,1724526650089,-500.0,0.00013972,2]
[335841883,1724526650098,-582.34947753,0.00013972,2]
[335841884,1724526650107,-500.0,0.00013972,2]
[335841885,1724526650116,-500.0,0.00013972,2]
[335841886,1724526650125,-580.37,0.00013972,2]
[335841887,1724526650134,-500.0,0.00013972,2]
[335841888,1724526650143,-297.52832699,0.00013972,2]
[335841889,1724526650153,-500.0,0.00013972,2]
[335841890,1724526650162,-516.06889033,0.00013972,2]
[335841891,1724526650171,-500.0,0.00013972,2]
[335841892,1724526650181,-835.03,0.00013972,2]
[335841893,1724526650190,-693.44,0.00013972,2]
[335841894,1724526650200,-500.0,0.00013972,2]
[335841895,1724526650209,-500.0,0.00013972,2]
[335841896,1724526650218,-500.0,0.00013972,2]
[335841897,1724526650227,-151.0,0.00013972,2]
[335841898,1724526650236,-513.87601645,0.00013972,2]
[335841899,1724526650245,-500.0,0.00013972,2]
[335841900,1724526650254,-711.38,0.00013972,2]
[335841901,1724526650263,-500.0,0.00013972,2]
[335841902,1724526650273,-450.24858877,0.00013972,2]
[335841903,1724526650282,-157.49589776,0.00013972,2]
[335841904,1724526650291,-501.55941497,0.00013972,2]
[335841905,1724526650301,-500.0,0.00013972,2]
[335841906,1724526650310,-597.06,0.00013972,2]
[335841907,1724526650319,-500.0,0.00013972,2]
[335841908,1724526650328,-610.96,0.00013972,2]
[335841909,1724526650337,-899.82,0.00013972,2]
[335841910,1724526650346,-500.0,0.00013972,2]
[335841911,1724526650356,-500.0,0.00013972,2]
[335841912,1724526650366,-502.9669734,0.00013972,2]
[335841913,1724526650375,-500.0,0.00013972,2]
[335841914,1724526650384,-680.78,0.00013972,2]
[335841915,1724526650393,-500.0,0.00013972,2]
[335841916,1724526650402,-500.0,0.00013972,2]
[335841917,1724526650412,-500.0,0.00013972,2]
[335841918,1724526650422,-500.0,0.00013972,2]
[335841919,1724526650433,-500.0,0.00013972,2]
[335841920,1724526650444,-500.0,0.00013972,2]
[335841921,1724526650455,-500.0,0.00013972,2]
[335841922,1724526650464,-500.0,0.00013972,2]
[335841923,1724526650474,-500.0,0.00013972,2]
[335841924,1724526650484,-500.0,0.00013972,2]
[335841925,1724526650495,-151.0,0.00013972,2]
[335841926,1724526650506,-158.863806,0.00013972,2]
[335841927,1724526650517,-500.0,0.00013972,2]
[335841928,1724526650527,-500.0,0.00013972,2]
[335841929,1724526650536,-738.16,0.00013972,2]
[335841930,1724526650550,-500.0,0.00013972,2]
[335841931,1724526650561,-500.0,0.00013972,2]
[335841932,1724526650571,-500.0,0.00013972,2]
[335841933,1724526650580,-500.0,0.00013972,2]
[335841934,1724526650590,-500.0,0.00013972,2]
[335841935,1724526650600,-500.0,0.00013972,2]
[335841936,1724526650610,-500.0,0.00013972,2]
[335841937,1724526650621,-500.0,0.00013972,2]
[335841938,1724526650635,-500.0,0.00013972,2]
[335841939,1724526650647,-2087.49,0.00013972,2]
[335841940,1724526650657,-643.50200613,0.00013972,2]
[335841941,1724526650668,-500.0,0.00013972,2]
[335841942,1724526650677,-556.67,0.00013972,2]
[335841943,1724526650687,-500.0,0.00013972,2]
[335841944,1724526650696,-500.0,0.00013972,2]
[335841945,1724526650705,-500.0,0.00013972,2]
[335841946,1724526650715,-500.0,0.00013972,2]
[335841947,1724526650727,-500.0,0.00013972,2]
[335841948,1724526650738,-730.48,0.00013972,2]
[335841949,1724526650748,-500.0,0.00013972,2]
[335841950,1724526650758,-500.0,0.00013972,2]
[335841951,1724526650767,-500.0,0.00013972,2]
[335841952,1724526650777,-500.0,0.00013972,2]
[335841953,1724526650786,-500.0,0.00013972,2]
[335841954,1724526650795,-500.0,0.00013972,2]
[335841955,1724526650805,-416.90936469,0.00013972,2]
[335841956,1724526650814,-500.0,0.00013972,2]
[335841957,1724526650823,-500.0,0.00013972,2]
[335841958,1724526650832,-500.0,0.00013972,2]
[335841960,1724526650842,-500.0,0.00013972,2]
[335841961,1724526650851,-500.0,0.00013972,2]
[335841962,1724526650861,-151.0,0.00013972,2]
[335841963,1724526650870,-151.0,0.00013972,2]
[335841964,1724526650879,-151.0,0.00013972,2]
[335841965,1724526650888,-151.0,0.00013972,2]
[335841966,1724526650898,-500.0,0.00013972,2]
[335841967,1724526650907,-500.0,0.00013972,2]
[335841968,1724526650916,-500.0,0.00013972,2]
[335841969,1724526650925,-500.0,0.00013972,2]
[335841970,1724526650934,-835.88,0.00013972,2]
[335841971,1724526650943,-500.0,0.00013972,2]
[335841972,1724526650952,-500.0,0.00013972,2]
[335841973,1724526650962,-500.0,0.00013972,2]
[335841974,1724526650974,-500.0,0.00013972,2]
[335841975,1724526650983,-500.0,0.00013972,2]
[335841976,1724526650992,-500.0,0.00013972,2]
[335841977,1724526651002,-500.0,0.00013972,2]
[335841978,1724526651014,-966.93,0.00013972,2]
[335841979,1724526651023,-704.2,0.00013972,2]
[335841980,1724526651033,-500.0,0.00013972,2]
[335841981,1724526651042,-500.0,0.00013972,2]
[335841982,1724526651052,-500.0,0.00013972,2]
[335841983,1724526651062,-500.0,0.00013972,2]
[335841984,1724526651071,-675.13,0.00013972,2]
[335841985,1724526651081,-817.45,0.00013972,2]
[335841986,1724526651090,-500.0,0.00013972,2]
[335841987,1724526651100,-500.0,0.00013972,2]
[335841988,1724526651109,-500.0,0.00013972,2]
[335841989,1724526651118,-500.0,0.00013972,2]
[335841990,1724526651127,-500.0,0.00013972,2]
[335841991,1724526651136,-500.0,0.00013972,2]
[335841992,1724526651145,-500.0,0.00013972,2]
[335841993,1724526651155,-1342.34,0.00013972,2]
[335841994,1724526651165,-500.0,0.00013972,2]
[335841995,1724526651174,-500.0,0.00013972,2]
[335841996,1724526651183,-500.0,0.00013972,2]
[335841997,1724526651192,-500.0,0.00013972,2]
[335841998,1724526651202,-1025.59,0.00013972,2]
[335841999,1724526651211,-500.0,0.00013972,2]
[335842000,1724526651220,-500.0,0.00013972,2]
[335842001,1724526651229,-152.05856622,0.00013972,2]
[335842002,1724526651239,-500.0,0.00013972,2]
[335842003,1724526651248,-870.76,0.00013972,2]
[335842004,1724526651258,-502.66802256,0.00013972,2]
[335842005,1724526651267,-599.58,0.00013972,2]
[335842006,1724526651276,-500.0,0.00013972,2]
[335842007,1724526651286,-500.0,0.00013972,2]
[335842008,1724526651296,-500.0,0.00013972,2]
[335842009,1724526651305,-500.0,0.00013972,2]
[335842010,1724526651314,-500.0,0.00013972,2]
[335842011,1724526651324,-674.65,0.00013972,2]
[335842012,1724526651334,-500.0,0.00013972,2]
[335842013,1724526651344,-500.0,0.00013972,2]
[335842014,1724526651353,-677.37,0.00013972,2]
[335842015,1724526651363,-500.0,0.00013972,2]
[335842016,1724526651374,-300.12094391,0.00013972,2]
[335842017,1724526651385,-799.72,0.00013972,2]
[335842018,1724526651396,-500.0,0.00013972,2]
[335842019,1724526651406,-3200.66,0.00013972,2]
[335842020,1724526651416,-656.67,0.00013972,2]
[335842021,1724526651426,-761.83,0.00013972,2]
[335842022,1724526651435,-500.0,0.00013972,2]
[335842023,1724526651444,-1011.54,0.00013972,2]
[335842024,1724526651454,-500.0,0.00013972,2]
[335842025,1724526651464,-500.0,0.00013972,2]
[335842026,1724526651473,-500.0,0.00013972,2]
[335842027,1724526651483,-500.0,0.00013972,2]
[335842028,1724526651492,-500.0,0.00013972,2]
[335842029,1724526651501,-500.0,0.00013972,2]
[335842030,1724526651511,-500.0,0.00013972,2]
[335842031,1724526651520,-500.0,0.00013972,2]
[335842032,1724526651529,-151.0,0.00013972,2]
[335842033,1724526651539,-151.0,0.00013972,2]
[335842034,1724526651551,-151.0,0.00013972,2]
[335842035,1724526651560,-151.0,0.00013972,2]
[335842036,1724526651570,-500.0,0.00013972,2]
[335842037,1724526651580,-151.0,0.00013972,2]
[335842038,1724526651590,-289.110514,0.00013972,2]
[335842039,1724526651599,-2068.09,0.00013972,2]
[335842040,1724526651608,-521.36,0.00013972,2]
[335842041,1724526651618,-500.0,0.00013972,2]
[335842042,1724526651631,-500.0,0.00013972,2]
[335842043,1724526651641,-2643.1,0.00013972,2]
[335842045,1724526651651,-500.0,0.00013972,2]
[335842046,1724526651660,-500.0,0.00013972,2]
[335842047,1724526651669,-500.0,0.00013972,2]
[335842048,1724526651679,-1086.82,0.00013972,2]
[335842049,1724526651688,-500.0,0.00013972,2]
[335842050,1724526651697,-794.52,0.00013972,2]
[335842051,1724526651706,-204.75181209,0.00013972,2]
[335842052,1724526651716,-500.0,0.00013972,2]
[335842053,1724526651726,-565.87,0.00013972,2]
[335842054,1724526651736,-769.72,0.00013972,2]
[335842055,1724526651746,-888.85,0.00013972,2]
[335842056,1724526651757,-500.0,0.00013972,2]
[335842057,1724526651767,-646.94,0.00013972,2]
[335842058,1724526651776,-500.0,0.00013972,2]
[335842059,1724526651785,-630.22,0.00013972,2]
[335842060,1724526651794,-500.0,0.00013972,2]
[335842061,1724526651804,-500.0,0.00013972,2]
[335842062,1724526651813,-378.64349896,0.00013972,2]
[335842063,1724526651822,-1219.01,0.00013972,2]
[335842064,1724526651831,-928.76,0.00013972,2]
[335842065,1724526651841,-406.22008266,0.00013972,2]
[335842066,1724526651850,-681.7,0.00013972,2]
[335842067,1724526651860,-1033.59,0.00013972,2]
[335842068,1724526651869,-500.0,0.00013972,2]
[335842069,1724526651878,-779.44,0.00013972,2]
[335842070,1724526651888,-500.0,0.00013972,2]
[335842071,1724526651897,-547.08,0.00013972,2]
[335842072,1724526651907,-545.69,0.00013972,2]
[335842073,1724526651916,-656.19,0.00013972,2]
[335842074,1724526651925,-500.0,0.00013972,2]
[335842075,1724526651935,-637.64,0.00013972,2]
[335842076,1724526651944,-582.63,0.00013972,2]
[335842077,1724526651955,-975.3,0.00013972,2]
[335842078,1724526651964,-500.0,0.00013972,2]
[335842079,1724526651974,-500.0,0.00013972,2]
[335842080,1724526651984,-500.0,0.00013972,2]
[335842081,1724526651993,-500.0,0.00013972,2]
[335842082,1724526652003,-500.0,0.00013972,2]
[335842083,1724526652011,-840.72,0.00013972,2]
[335842084,1724526652021,-1332.69,0.00013972,2]
[335842085,1724526652030,-500.0,0.00013972,2]
[335842086,1724526652043,-1516.22,0.00013972,2]
[335842087,1724526652054,-500.0,0.00013972,2]
[335842088,1724526652064,-500.0,0.00013972,2]
[335842089,1724526652074,-500.0,0.00013972,2]
[335842090,1724526652084,-655.42,0.00013972,2]
[335842091,1724526652094,-877.36,0.00013972,2]
[335842092,1724526652104,-152.8006196,0.00013972,2]
[335842094,1724526693926,9664.212107,0.00011999,2]
[335842104,1724526756032,2596.97571274,0.00011999,2]
[335842114,1724526786039,2596.97571274,0.00011999,2]
[335842115,1724526788101,3094.20831595,0.00011999,2]
[335842116,1724526796077,3000.0,0.000137,30]
[335842117,1724526797822,1006.998022,0.0001371,30]
[335842155,1724527102392,3937.549245,0.00011906,2]
[335842156,1724527108187,154.74467129,0.00011999,2]
[335842173,1724527222419,180.88265675,0.00011999,2]
[335842176,1724527268758,811.79481334,0.00011999,2]
[335842186,1724527348917,729.15793853,0.00011999,2]
[335842205,1724527435836,250.0,0.00012079,2]
[335842256,1724527716149,319.84324587,0.00025,120]
[335842260,1724527772356,7016.80902756,0.00011999,2]
[335842383,1724527838446,-250.0,0.00012112,2]
[335842384,1724527838456,-300.0,0.00012119,2]
[335842385,1724527838466,-9664.212107,0.0001212,2]
[335842386,1724527838475,-250.0,0.00012145,2]
[335842387,1724527838484,-300.0,0.00012162,2]
[335842388,1724527838494,-250.0,0.00012178,2]
[335842389,1724527838505,-250.0,0.00012211,2]
[335842390,1724527838516,-250.0,0.00012244,2]
[335842391,1724527838527,-250.0,0.00012278,2]
[335842392,1724527838538,-396.43028013,0.000123,2]
[335842393,1724527838547,-250.0,0.00012311,2]
[335842394,1724527838560,-250.0,0.00012344,2]
[335842395,1724527838569,-2713.96502114,0.00012356,2]
[335842397,1724527838579,-250.0,0.00012377,2]
[335842399,1724527838589,-250.0,0.0001241,2]
[335842401,1724527838598,-250.0,0.00012443,2]
[335842402,1724527838607,-250.0,0.00012476,2]
[335842404,1724527838616,-250.0,0.00012509,2]
[335842407,1724527838626,-250.0,0.00012543,2]
[335842408,1724527838636,-250.0,0.00012576,2]
[335842409,1724527838645,-306.0,0.000126,2]
[335842410,1724527838655,-409.2733729,0.000126,2]
[335842411,1724527838666,-250.0,0.00012609,2]
[335842412,1724527838675,-2167.30721455,0.00012629,2]
[335842414,1724527838685,-435.7271373,0.00012629,3]
[335842416,1724527838699,-1847.90962479,0.00012629,3]
[335842417,1724527838709,-950.29037522,0.00012629,3]
[335842418,1724527838722,-1333.34638687,0.00012629,3]
[335842419,1724527838733,-250.0,0.00012642,2]
[335842420,1724527838745,-250.0,0.00012675,2]
[335842421,1724527838756,-250.0,0.00012708,2]
[335842422,1724527838767,-213.52341313,0.00012782,2]
[335842423,1724527838783,-287.38831,0.00012782,2]
[335842424,1724527838795,-366.99479238,0.00012782,2]
[335842430,1724527840555,-47.97902067,0.00012782,2]
[335842431,1724527840565,-3094.20831595,0.00012782,2]
[335842432,1724527840574,-519.31769,0.00012877,2]
[335842433,1724527840584,-346.46491659,0.00012898,2]
[335842434,1724527840593,-721.39591274,0.00012898,2]
[335842435,1724527840603,-156.92948105,0.00012898,2]
[335842436,1724527840612,-376.01596697,0.00012898,2]
[335842437,1724527840622,-407.81549003,0.00012898,2]
[335842438,1724527840634,-289.27822703,0.00012898,2]
[335842439,1724527840644,-635.10413542,0.00012898,2]
[335842440,1724527840653,-192.85763756,0.000129,2]
[335842512,1724527850501,9664.212107,0.00011999,2]
[335842516,1724527948908,250.0,0.00012095,2]
[335842528,1724528382352,204.11181412,0.00011999,2]
[335842531,1724528421176,154.74467129,0.00011999,2]
[335842533,1724528423176,652.50643451,0.00011999,2]
[335842536,1724528444674,670.47287255,0.00011999,2]
[335842537,1724528449496,249.235536,0.00011937,2]
[335842538,1724528449736,249.235536,0.0001197,2]
[335842539,1724528450007,249.235536,0.00012002,2]
[335842540,1724528450212,249.235536,0.00012035,2]
[335842541,1724528450437,249.235536,0.00012068,2]
[335842542,1724528450647,249.235536,0.000121,2]
[335842543,1724528476365,210.34587067,0.00011999,2]
[335842544,1724528485245,308.77232842,0.00011999,2]
[335842545,1724528491793,285.7456438,0.00011999,2]
[335842548,1724528506347,210.34587067,0.00011999,2]
[335842553,1724528603574,320.7589607,0.00011999,2]
[335842555,1724528623531,154.74467129,0.00011999,2]
[335842562,1724528736703,9000.0,0.00012,13]
[335842563,1724528759198,847.85598646,0.00012,2]
[335842567,1724528848631,285.71911083,0.00011999,2]
[335842569,1724528937344,811.79481334,0.00011999,2]
[335842570,1724528994919,5418.26692704,0.00011999,2]
[335842579,1724529019017,182.62215133,0.00011999,2]
[335842636,1724529038466,-222.72705327,0.0001212,2]
[335842637,1724529038476,-249.235536,0.00012133,2]
[335842638,1724529038486,-249.235536,0.00012166,2]
[335842639,1724529038495,-249.235536,0.00012199,2]
[335842640,1724529038506,-249.235536,0.00012231,2]
[335842641,1724529038516,-249.235536,0.00012264,2]
[335842642,1724529038525,-249.235536,0.00012297,2]
[335842643,1724529038534,-249.235536,0.0001233,2]
[335842644,1724529038543,-2713.96502114,0.00012356,2]
[335842645,1724529038555,-249.235536,0.00012362,2]
[335842646,1724529038565,-249.235536,0.00012395,2]
[335842647,1724529038574,-249.235536,0.00012428,2]
[335842648,1724529038583,-249.235536,0.00012461,2]
[335842649,1724529038593,-249.235536,0.00012493,2]
[335842650,1724529038602,-300.0,0.00012515,2]
[335842651,1724529038612,-249.235536,0.00012526,2]
[335842652,1724529038632,-249.235536,0.00012559,2]
[335842653,1724529038643,-153.0,0.000126,2]
[335842654,1724529038654,-153.0,0.000126,2]
[335842655,1724529038665,-153.0,0.000126,2]
[335842656,1724529038675,-153.0,0.000126,2]
[335842657,1724529038686,-153.0,0.000126,2]
[335842658,1724529038696,-153.0,0.000126,2]
[335842659,1724529038706,-409.2733729,0.000126,2]
[335842660,1724529038716,-207.7300879,0.000126,2]
[335842661,1724529038728,-409.2733729,0.000126,2]
[335842662,1724529038739,-207.7300879,0.000126,2]
[335842663,1724529038749,-207.7300879,0.000126,2]
[335842664,1724529038761,-409.2733729,0.000126,2]
[335842665,1724529038771,-207.7300879,0.000126,2]
[335842666,1724529038780,-409.2733729,0.000126,2]
[335842667,1724529038789,-207.7300879,0.000126,2]
[335842668,1724529038798,-306.0,0.000126,2]
[335842669,1724529038808,-409.2733729,0.000126,2]
[335842670,1724529038818,-306.0,0.000126,2]
[335842671,1724529038828,-409.2733729,0.000126,2]
[335842672,1724529038839,-207.7300879,0.000126,2]
[335842673,1724529038850,-409.2733729,0.000126,2]
[335842674,1724529038860,-364.9487531,0.000126,2]
[335842675,1724529038876,-150.0,0.00012677,2]
[335842676,1724529038886,-5720.57521366,0.00012758,2]
[335842677,1724529038894,-1072.64109927,0.00012779,2]
[335842678,1724529038905,-463.505916,0.00012877,2]
[335842679,1724529038915,-153.0,0.00012877,2]
[335842680,1724529038927,-153.0,0.00012877,2]
[335842681,1724529038938,-153.0,0.00012877,2]
[335842682,1724529038948,-153.0,0.00012877,2]
[335842683,1724529038962,-8815.14866346,0.000129,2]
[335842684,1724529038973,-5617.01728475,0.000129,2]
[335842685,1724529038985,-493.58061031,0.00012971,2]
[335842686,1724529038996,-156.92948105,0.00012985,2]
[335842687,1724529039006,-10000.0,0.00013,13]
[335842688,1724529039018,-2000.0,0.00013039,2]
[335842689,1724529039028,-3115.19879026,0.00013039,2]
[335842690,1724529039038,-313452.51787726,0.00013118,2]
[335842691,1724529039068,-2799.89999999,0.00013118,2]
[335842734,1724529041062,-207.18157,0.00012898,2]
[335842735,1724529041072,-1495.617442,0.00013118,2]
[335842752,1724529044007,-3094.20831595,0.00012356,2]
[335842753,1724529044016,-408.829421,0.000126,2]
[335842754,1724529044026,-50949.73282955,0.00013118,2]
[335842764,1724529046418,-1845.59694257,0.00013118,2]
[335842769,1724529481155,181.5887855,0.00012009,2]
[335842837,1724529757081,156.92948105,0.00011999,2]
[335842907,1724530238950,-289.75305282,0.00012163,2]
[335842908,1724530238960,-261.3255197,0.00012356,2]
[335842909,1724530238971,-3094.20831595,0.00012356,2]
[335842910,1724530238980,-210.34587067,0.00012516,2]
[335842911,1724530238990,-309.07267468,0.00012551,2]
[335842912,1724530238999,-154.74467129,0.00012551,2]
[335842913,1724530239009,-811.79481334,0.00012551,2]
[335842914,1724530239020,-300.0,0.00012628,2]
[335842915,1724530239029,-300.0,0.00012628,2]
[335842916,1724530239039,-29310.27318735,0.00012629,2]
[335842917,1724530239049,-5720.57521366,0.00012719,2]
[335842918,1724530239059,-493.351805,0.00012877,2]
[335842919,1724530239070,-4116.79784993,0.00012898,2]
[335842920,1724530239081,-207.5309026,0.000129,2]
[335842921,1724530239091,-153.0,0.000129,2]
[335842922,1724530239102,-2000.0,0.00012919,2]
[335842923,1724530239113,-5593.9499248,0.00012925,2]
[335842924,1724530239127,-5951.24255829,0.00012928,2]
[335842925,1724530239139,-423.58345055,0.00012934,2]
[335842926,1724530239149,-686.87941048,0.00012971,2]
[335842927,1724530239159,-590.57331833,0.00012985,2]
[335842928,1724530239170,-373.59900059,0.00013,2]
[335842929,1724530239179,-207.7300879,0.00013,2]
[335842930,1724530239190,-153.0,0.00013,2]
[335842931,1724530239200,-207.7300879,0.00013,2]
[335842932,1724530239209,-248286.754168,0.00013018,2]
[335842933,1724530239218,-28757.81905081,0.00013028,2]
[335842934,1724530239228,-88888.0,0.00013028,2]
[335842935,1724530239237,-301.66413705,0.00013051,2]
[335842936,1724530239247,-5593.9499248,0.00013054,2]
[335842937,1724530239258,-409.2733729,0.000131,2]
[335842938,1724530239267,-415.3643234,0.000131,2]
[335842939,1724530239277,-153.0,0.000131,2]
[335842940,1724530239287,-153.0,0.000131,2]
[335842941,1724530239297,-409.2733729,0.000131,2]
[335842942,1724530239306,-248286.754168,0.00013106,2]
[335842943,1724530239317,-202.277176,0.00013106,2]
[335842944,1724530239328,-202.277176,0.00013106,2]
[335842945,1724530239339,-73632.61285079,0.00013116,2]
[335842946,1724530239349,-480.5492788,0.00013156,2]
[335842947,1724530239359,-5593.9499248,0.00013183,2]
[335842948,1724530239371,-293.698179,0.000132,2]
[335842949,1724530239381,-150.112233,0.000132,2]
[335842950,1724530239391,-306.9646538,0.000132,2]
[335842951,1724530239402,-153.0,0.000132,2]
[335842952,1724530239412,-153.0,0.000132,2]
[335842953,1724530239422,-153.0,0.000132,2]
[335842954,1724530239432,-150.112233,0.000133,2]
[335842955,1724530239443,-153.0,0.000133,2]
[335842956,1724530239453,-153.0,0.000133,2]
[335842957,1724530239463,-153.0,0.000133,2]
[335842958,1724530239473,-150.112233,0.000133,2]
[335842959,1724530239483,-5593.9499248,0.00013312,2]
[335842960,1724530239493,-862.18067108,0.00013333,2]
[335842961,1724530239502,-308.77232842,0.00013333,2]
[335842962,1724530239512,-150.0,0.00013351,2]
[335842963,1724530239521,-153.0,0.00013397,2]
[335842964,1724530239530,-153.0,0.00013397,2]
[335842965,1724530239540,-153.0,0.00013397,2]
[335842966,1724530239549,-153.0,0.00013397,2]
[335842967,1724530239558,-153.0,0.00013397,2]
[335842968,1724530239567,-153.0,0.00013397,2]
[335842969,1724530239578,-153.0,0.00013397,2]
[335842970,1724530239588,-153.0,0.00013397,2]
[335842971,1724530239600,-153.0,0.00013397,2]
[335842972,1724530239612,-153.0,0.00013397,2]
[335842973,1724530239623,-153.0,0.00013397,2]
[335842974,1724530239633,-153.0,0.00013397,2]
[335842975,1724530239644,-153.0,0.00013397,2]
[335842976,1724530239657,-153.0,0.00013397,2]
[335842977,1724530239667,-153.0,0.00013397,2]
[335842978,1724530239677,-153.0,0.00013397,2]
[335842979,1724530239687,-153.0,0.00013397,2]
[335842980,1724530239696,-153.0,0.00013397,2]
[335842981,1724530239706,-153.0,0.00013397,2]
[335842982,1724530239715,-153.0,0.00013397,2]
[335842983,1724530239728,-153.0,0.00013397,2]
[335842984,1724530239738,-153.0,0.00013397,2]
[335842985,1724530239748,-153.0,0.00013397,2]
[335842986,1724530239757,-153.0,0.00013397,2]
[335842987,1724530239767,-153.0,0.00013397,2]
[335842988,1724530239776,-153.0,0.00013397,2]
[335842989,1724530239786,-153.0,0.00013397,2]
[335842990,1724530239796,-153.0,0.00013397,2]
[335842991,1724530239806,-153.0,0.00013397,2]
[335842992,1724530239816,-153.0,0.00013397,2]
[335842993,1724530239826,-153.0,0.00013397,2]
[335842994,1724530239835,-153.0,0.00013397,2]
[335842995,1724530239845,-153.0,0.00013397,2]
[335842996,1724530239855,-153.0,0.00013397,2]
[335842997,1724530239865,-153.0,0.00013397,2]
[335842998,1724530239875,-150.112233,0.000134,2]
[335842999,1724530239886,-150.112233,0.000134,2]
[335843000,1724530239898,-150.112233,0.000134,2]